bitfinex/quotes_ETHUSD_20220123
["timestamp","ask_amount","ask_price","bid_price","bid_amount"]
[1642911062555,3.9559,2431.0,2429.6,24.38]
[1642911062751,3.9559,2431.0,2430.4,1.50331292]
[1642911062951,0.00258684,2431.1,2430.4,1.50331292]
[1642911063152,0.00113685,2431.3,2430.5,1.5522449]
[1642911063598,0.00113685,2431.3,2430.6,0.00284212]
[1642911064298,0.00113685,2431.3,2430.0,0.00625266]
[1642911064503,0.593,2431.2,2430.0,0.00625266]
[1642911065702,0.593,2431.2,2430.0,1.21262879]
[1642911066104,0.593,2431.2,2430.3,1.49012073]
[1642911066504,0.593,2431.2,2430.4,0.00397897]
[1642911067455,2.00190882,2431.2,2430.4,0.00397897]
[1642911067852,0.593,2431.2,2430.1,0.00568424]
[1642911068053,0.593,2431.2,2430.0,0.00625266]
[1642911068655,0.593,2431.2,2430.1,1.24375156]
[1642911068955,0.593,2431.2,2430.2,0.00511582]
[1642911068956,1.73650019,2431.2,2430.2,0.00511582]
[1642911069255,1.73650019,2431.2,2430.0,0.00625266]
[1642911069458,3.20565283,2431.1,2430.0,0.00625266]
[1642911069659,7.414,2430.8,2430.0,0.00625266]
[1642911069863,7.414,2430.8,2429.7,0.00795793]
[1642911069864,7.414,2430.4,2429.7,0.00795793]
[1642911070058,7.414,2430.4,2429.2,0.01080005]
[1642911070059,1.0,2430.3,2429.2,0.01080005]
[1642911070261,1.593,2430.3,2429.2,0.01080005]
[1642911070462,2.06092,2430.1,2429.2,0.01080005]
[1642911070661,0.593,2430.0,2429.2,0.01080005]
[1642911070899,4.52725181,2430.0,2428.8,1.30966796]
[1642911071100,0.00454738,2429.9,2428.8,1.30966796]
[1642911071299,0.493,2429.8,2428.8,1.30966796]
[1642911071500,0.493,2429.8,2428.8,2.7925052]
[1642911071501,0.49697896,2429.8,2428.8,2.7925052]
[1642911071703,0.00341054,2429.7,2428.8,2.7925052]
[1642911071903,0.593,2429.6,2428.5,0.00341054]
[1642911072107,0.59584211,2429.6,2428.5,0.00341054]
[1642911072308,0.00227369,2429.5,2428.5,0.00341054]
[1642911072505,0.593,2429.4,2428.5,0.00341054]
[1642911072704,0.59470527,2429.4,2428.5,0.00341054]
[1642911072904,0.00113684,2429.3,2428.4,0.00397897]
[1642911073105,0.00113684,2429.3,2428.5,1.18473054]
[1642911073510,0.00113684,2429.3,2428.6,0.00284212]
[1642911073707,0.593,2429.2,2428.6,0.00284212]
[1642911074953,2.93102347,2429.1,2427.7,0.093742]
[1642911075162,0.593,2429.0,2427.7,0.01210945]
[1642911075353,0.593,2429.0,2427.8,0.00341054]
[1642911075354,0.59641054,2429.0,2427.8,0.00341054]
[1642911075555,0.00284212,2428.9,2427.8,1.51390574]
[1642911075752,0.593,2428.8,2427.8,1.51390574]
[1642911075953,0.5952737,2428.8,2427.9,0.00284212]
[1642911076156,0.00170527,2428.7,2427.9,0.00284212]
[1642911076357,0.593,2428.6,2427.9,0.00284212]
[1642911076556,0.59413685,2428.6,2427.7,0.00397896]
[1642911076955,1.98142218,2428.6,2427.7,0.00397896]
[1642911077157,0.01241404,2428.5,2427.5,0.00511581]
[1642911077358,0.593,2428.4,2427.5,0.00511581]
[1642911077559,7.414,2427.9,2427.1,0.0073895]
[1642911077765,0.593,2427.8,2426.6,0.01023162]
[1642911077954,1.593,2427.8,2426.4,0.01136847]
[1642911078154,1.593,2427.8,2426.6,1.48003533]
[1642911078155,0.08288,2427.7,2426.6,1.48003533]
[1642911078407,0.593,2427.6,2426.6,1.48003533]
[1642911078609,0.0829,2427.5,2426.7,0.0096632]
[1642911078808,0.593,2427.4,2427.0,1.33026165]
[1642911079007,0.593,2427.4,2427.3,1.4409552]
[1642911079208,0.08291,2428.2,2427.1,1.44216677]
[1642911079408,0.495,2428.2,2427.3,0.00625266]
[1642911079608,0.495,2428.2,2427.2,0.00682108]
[1642911080209,0.495,2428.2,2427.2,1.45549421]
[1642911080413,3.42288121,2428.2,2427.2,0.00682108]
[1642911080610,0.08297,2428.1,2427.3,0.00625266]
[1642911080811,0.495,2428.0,2426.9,0.00852635]
[1642911081012,0.08298,2427.9,2426.9,0.00852635]
[1642911081311,0.57798,2427.9,2427.1,1.24103386]
[1642911081711,0.495,2427.9,2427.5,1.34650593]
[1642911082151,0.495,2427.9,2427.6,0.00454739]
[1642911083157,0.08282,2428.2,2427.6,1.26051136]
[1642911083358,0.35593685,2428.6,2427.9,1.13053862]
[1642911083759,0.35593685,2428.6,2428.0,0.00227369]
[1642911084758,0.35593685,2428.6,2427.7,2.25188006]
[1642911084759,0.35593685,2428.6,2427.7,2.25585902]
[1642911085160,0.35593685,2428.6,2427.7,0.00397896]
[1642911087504,0.08272,2428.5,2427.7,0.00397896]
[1642911087705,0.35593685,2428.6,2427.8,1.45786352]
[1642911088108,0.35593685,2428.6,2427.9,0.00284212]
[1642911088404,0.35593685,2428.6,2427.9,1.18048102]
[1642911088604,0.35593685,2428.6,2427.9,0.00284212]
[1642911088605,0.495,2428.5,2427.9,0.00284212]
[1642911088807,0.57735,2428.5,2428.0,0.00227369]
[1642911089006,0.57735,2428.5,2427.5,0.00511581]
[1642911089207,0.495,2428.5,2427.4,2.35065382]
[1642911089406,0.00113685,2428.6,2427.6,0.21934446]
[1642911089685,0.00113685,2428.6,2427.8,24.38]
[1642911089879,0.00113685,2428.6,2427.9,3.30930602]
[1642911090085,0.00113685,2428.6,2427.9,3.31214814]
[1642911090279,0.00113685,2428.6,2428.5,1.16909948]
[1642911091083,0.00113685,2428.6,2428.5,3.36909948]
[1642911092486,3.685e-05,2428.6,2428.5,4.46191997]
[1642911092690,0.08387,2429.6,2428.6,2.90076315]
[1642911092892,0.08387,2429.6,2428.6,5.20418983]
[1642911093090,0.00397896,2429.3,2428.7,2.20544186]
[1642911093308,0.00397896,2429.3,2428.6,2.90076315]
[1642911093509,0.00341054,2429.2,2428.6,2.90076315]
[1642911093711,0.00341054,2429.2,2429.0,1.18485737]
[1642911093907,0.00284212,2429.1,2429.0,1.18485737]
[1642911094108,0.00284212,2429.1,2429.0,3.43131952]
[1642911094308,0.00284212,2429.1,2429.0,1.18485737]
[1642911094908,0.00284212,2429.1,2428.6,0.13896312]
[1642911095323,0.00227369,2429.0,2428.6,0.13896312]
[1642911095714,0.00170527,2428.9,2428.6,0.13896312]
[1642911096114,0.00113685,2428.8,2428.6,0.00076315]
[1642911096313,0.08209685,2428.8,2428.6,0.00076315]
[1642911096512,0.08096,2428.8,2428.6,0.00076315]
[1642911096914,0.08096,2428.8,2428.0,0.00227369]
[1642911096915,3.395,2428.7,2428.0,0.00227369]
[1642911097161,1.0,2428.6,2428.0,0.00227369]
[1642911097360,0.50700336,2428.5,2427.4,0.00682108]
[1642911097560,0.08382,2428.4,2427.5,0.00625266]
[1642911097763,0.08382,2428.4,2427.3,0.00738951]
[1642911097764,0.66567181,2428.4,2427.3,0.00738951]
[1642911097962,0.66567181,2428.4,2427.5,1.11562437]
[1642911098161,0.08685181,2428.3,2427.5,1.11562437]
[1642911098359,0.08685181,2428.3,2427.6,0.00568424]
[1642911098564,0.57882,2428.4,2427.6,0.00568424]
[1642911098766,0.495,2428.4,2427.6,0.00568424]
[1642911099364,2.06107,2430.1,2428.5,24.38]
[1642911099565,3.5,2430.0,2429.1,0.01240648]
[1642911099864,3.8471,2430.2,2428.3,0.01264626]
[1642911099865,2.25188006,2429.9,2428.3,0.01264626]
[1642911100062,0.495,2429.8,2428.3,0.01264626]
[1642911100261,1.22491189,2429.4,2428.4,0.00113685]
[1642911100671,3.84431349,2429.3,2428.4,0.00113685]
[1642911100906,3.84431349,2429.3,2428.2,0.00227369]
[1642911100907,0.01223782,2428.8,2428.2,0.00227369]
[1642911101113,0.01223782,2428.8,2427.6,0.00568424]
[1642911101403,0.01223782,2428.8,2427.0,0.13819997]
[1642911101404,1.34658325,2428.3,2427.1,0.00852635]
[1642911101604,0.495,2428.7,2427.4,1.11108273]
[1642911101605,0.495,2428.2,2427.4,1.11108273]
[1642911102006,0.495,2428.2,2427.5,0.00625266]
[1642911103312,0.495,2428.2,2427.8,1.1843267]
[1642911103715,3.8704,2428.6,2427.9,0.00397897]
[1642911103910,0.495,2429.1,2428.5,1.29897233]
[1642911104112,0.495,2429.1,2428.0,1.13776757]
[1642911104309,7.84383042,2429.5,2428.0,1.13776757]
[1642911104310,0.00227369,2429.0,2428.1,2.26079972]
[1642911104554,0.00227369,2429.0,2428.1,2.26364184]
[1642911104755,0.495,2429.8,2428.2,0.00227369]
[1642911104756,0.00170527,2428.9,2428.2,0.00227369]
[1642911104957,0.00170527,2428.9,2428.3,0.20705]
[1642911105257,0.00113685,2428.8,2428.7,4.09372452]
[1642911105458,0.00113685,2428.8,2428.7,6.34530447]
[1642911105858,3.685e-05,2428.8,2428.7,29.83862995]
[1642911106058,3.685e-05,2428.8,2428.7,31.1508437]
[1642911106456,0.04,2430.2,2428.8,2.9]
[1642911106658,0.04,2430.2,2429.0,24.38]
[1642911106858,0.0073895,2430.1,2429.6,1.29245808]
[1642911107061,0.0073895,2430.1,2429.3,0.20705]
[1642911107265,0.00682108,2430.0,2429.3,0.20705]
[1642911107662,0.00625265,2429.9,2429.3,0.20705]
[1642911108063,0.00568423,2429.8,2429.4,1.15387765]
[1642911108306,0.00568423,2429.8,2429.5,1.48182848]
[1642911108517,0.00511581,2429.7,2429.5,3.76755092]
[1642911108710,0.00511581,2429.7,2429.6,4.59149743]
[1642911108917,0.04,2430.2,2429.6,2.59149743]
[1642911109108,0.04,2430.2,2429.9,1.5024202]
[1642911109311,0.04,2430.2,2429.4,1.15387765]
[1642911109312,0.0073895,2430.1,2429.4,1.15387765]
[1642911109716,0.04,2430.2,2429.4,1.15387765]
[1642911109717,0.00682108,2430.0,2429.4,1.15387765]
[1642911110114,0.00625265,2429.9,2429.5,2.34342625]
[1642911110313,0.00625265,2429.9,2429.7,1.40156248]
[1642911110516,0.04,2430.2,2429.7,1.40156248]
[1642911110517,0.04,2430.2,2429.8,2.65]
[1642911110722,0.04,2430.2,2429.9,2.2165358]
[1642911110917,0.04,2430.2,2430.1,4.27480973]
[1642911111319,0.04795792,2430.2,2430.1,2.47480973]
[1642911111521,0.04795792,2430.2,2430.1,1.20249522]
[1642911111719,0.04795792,2430.2,2429.4,0.20705]
[1642911112161,0.0073895,2430.1,2429.4,0.20705]
[1642911112361,0.0073895,2430.1,2429.3,0.21951783]
[1642911112561,0.00682108,2430.0,2429.3,0.21951783]
[1642911112960,0.00625265,2429.9,2429.8,1.1210133]
[1642911113160,0.00625265,2429.9,2429.3,0.01246783]
[1642911113365,0.00625265,2429.9,2429.2,1.2221]
[1642911113366,0.0073895,2429.9,2429.2,1.2221]
[1642911113567,0.00568423,2429.8,2429.1,0.13819997]
[1642911113963,0.00511581,2429.7,2429.1,0.13819997]
[1642911114167,0.00511581,2429.7,2429.3,1.30189401]
[1642911114364,0.00454738,2429.6,2429.3,1.30189401]
[1642911114765,0.00397896,2429.5,2429.3,1.30189401]
[1642911114963,0.00397896,2429.5,2429.1,0.13819997]
[1642911115168,0.00341054,2429.4,2429.1,0.13819997]
[1642911115465,0.00682108,2430.0,2429.1,0.13819997]
[1642911115666,0.00284211,2429.3,2429.1,0.13819997]
[1642911115903,0.00625265,2429.9,2429.1,0.13819997]
[1642911116104,0.00227369,2429.2,2429.1,0.13819997]
[1642911116309,0.00568423,2429.8,2429.1,1.41211109]
[1642911116603,0.00511581,2429.7,2429.1,1.41211109]
[1642911117004,0.04,2430.2,2429.6,1.45382521]
[1642911117410,0.00682108,2430.0,2429.6,1.45382521]
[1642911117806,0.00625265,2429.9,2429.6,1.45382521]
[1642911118208,0.00568423,2429.8,2429.6,1.45382521]
[1642911118411,0.00568423,2429.8,2429.7,2.25]
[1642911118614,0.04,2430.2,2429.7,4.48584253]
[1642911119010,0.0073895,2430.1,2429.7,4.48584253]
[1642911119416,0.04,2430.2,2429.8,1.13363847]
[1642911119417,0.00682108,2430.0,2429.8,1.13363847]
[1642911119651,0.00682108,2430.0,2429.8,1.03363847]
[1642911119851,0.00625265,2429.9,2429.8,1.03363847]
[1642911121056,0.00625265,2429.9,2429.6,1.45382521]
[1642911121456,0.00568423,2429.8,2429.6,1.45382521]
[1642911121856,0.00511581,2429.7,2429.6,1.45382521]
[1642911122859,0.00511581,2429.7,2429.6,2.99803244]
[1642911123058,0.00511581,2429.7,2429.6,1.45382521]
[1642911124114,0.00511581,2429.7,2429.0,1.1982]
[1642911124314,0.00511581,2429.7,2428.9,0.13100202]
[1642911124512,0.00454738,2429.6,2428.9,0.13100202]
[1642911124914,0.00397896,2429.5,2428.9,0.13100202]
[1642911125314,0.495,2430.1,2429.4,1.44449731]
[1642911125716,0.495,2430.1,2429.8,1.11360964]
[1642911125717,0.00682108,2430.0,2429.8,1.11360964]
[1642911125913,0.00682108,2430.0,2428.9,1.39722016]
[1642911125914,0.00682108,2430.0,2429.0,2.28341909]
[1642911126114,0.00625265,2429.9,2428.9,1.39722016]
[1642911126513,0.495,2430.1,2428.9,1.39722016]
[1642911126514,0.00568423,2429.8,2428.9,1.39722016]
[1642911126715,0.00568423,2429.8,2428.9,0.13100202]
[1642911126916,0.05208218,2430.2,2429.0,1.15923143]
[1642911126917,0.00511581,2429.7,2429.0,1.15923143]
[1642911127356,0.00454738,2429.6,2429.0,1.15923143]
[1642911127753,0.00397896,2429.5,2429.4,1.25030189]
[1642911128157,0.00511581,2429.5,2429.4,1.25030189]
[1642911128760,0.00511581,2429.5,2429.4,2.80030189]
[1642911128963,0.00511581,2429.5,2429.4,5.2297987]
[1642911129259,0.00511581,2429.5,2429.4,5.12477901]
[1642911129459,0.00511581,2429.5,2429.4,2.80030189]
[1642911129658,0.00511581,2429.5,2429.4,5.24595629]
[1642911129862,0.00511581,2429.5,2429.4,4.25230948]
[1642911130060,0.00511581,2429.5,2429.4,6.52775219]
[1642911130257,0.00511581,2429.5,2429.4,6.73480219]
[1642911130457,0.00511581,2429.5,2429.4,6.52775219]
[1642911131704,0.00511581,2429.5,2429.4,4.25230948]
[1642911132108,0.00511581,2429.5,2429.2,0.20705]
[1642911132109,0.04,2430.2,2429.0,1.9]
[1642911132308,0.535,2430.2,2428.9,0.13100202]
[1642911132514,0.00227369,2430.1,2429.1,0.00341054]
[1642911132706,0.495,2430.0,2429.0,0.00397897]
[1642911132907,0.49670527,2430.0,2429.0,0.00397897]
[1642911133106,0.00113684,2429.9,2429.0,0.00397897]
[1642911133312,0.49613684,2429.9,2429.3,1.55693519]
[1642911133507,0.49613684,2429.9,2429.7,1.18417743]
[1642911133707,0.49613684,2429.9,2429.4,0.00170527]
[1642911134207,0.49613684,2429.9,2429.1,0.00341054]
[1642911134652,0.00113684,2429.9,2429.0,0.21102897]
[1642911134851,0.00113684,2429.9,2429.0,0.00397897]
[1642911135055,0.00113684,2429.9,2429.1,0.00341054]
[1642911135252,0.00113684,2429.9,2429.0,0.00397897]
[1642911135752,0.00113684,2429.9,2429.2,1.3617571]
[1642911135954,0.00113684,2429.9,2429.5,1.13078676]
[1642911139703,1.1319236,2429.9,2429.6,1.18684613]
[1642911139903,0.00284212,2429.8,2429.6,1.18684613]
[1642911140309,0.01218931,2430.1,2429.6,1.18684613]
[1642911140310,0.0022737,2429.7,2429.6,1.18684613]
[1642911149555,0.0022737,2429.7,2429.6,3.72927303]
[1642911149766,7.37e-05,2429.7,2429.6,3.72927303]
[1642911150163,7.37e-05,2429.7,2429.6,27.90349303]
[1642911150364,0.04,2430.2,2429.8,0.0067474]
[1642911150561,0.04,2430.2,2429.8,2.45200118]
[1642911150766,0.00227369,2430.1,2429.9,1.46129172]
[1642911151164,0.04,2430.4,2430.1,2.9]
[1642911151363,0.04,2430.4,2430.3,3.10578]
[1642911151565,0.04,2430.4,2430.3,5.45031401]
[1642911152164,0.04,2430.4,2430.3,6.88915199]
[1642911152763,0.04,2430.4,2430.3,4.54461798]
[1642911153708,0.03,2431.1,2430.4,2.4]
[1642911153907,0.03,2431.1,2430.5,2.23328195]
[1642911154110,0.00511581,2431.0,2430.5,2.57726192]
[1642911154510,0.00454739,2430.9,2430.6,1.19068083]
[1642911154709,0.00454739,2430.9,2430.7,26.5972176]
[1642911154907,0.03,2431.1,2430.8,5.36053864]
[1642911155306,0.00511581,2431.0,2430.8,5.36053864]
[1642911155508,0.00511581,2431.0,2430.8,29.74053864]
[1642911155708,0.00454739,2430.9,2430.8,30.9331698]
[1642911155909,0.007,2431.4,2430.9,2.9]
[1642911156116,0.04,2432.2,2430.8,30.9331698]
[1642911156117,0.04258684,2432.2,2431.3,2.91213781]
[1642911156315,0.04258684,2432.2,2431.5,24.38]
[1642911156515,0.04258684,2432.2,2431.6,2.44004362]
[1642911156715,0.04,2432.3,2431.6,2.44004362]
[1642911156921,0.04,2432.3,2431.8,24.38]
[1642911157158,0.77500572,2433.0,2431.9,2.9]
[1642911157358,3.70994909,2433.4,2432.0,0.20578]
[1642911157558,0.00341054,2432.8,2432.0,0.20578]
[1642911157957,0.00284212,2432.7,2432.0,0.20578]
[1642911158163,3.66279121,2433.4,2432.3,1.16076209]
[1642911158363,0.02689121,2433.4,2433.0,1.125751]
[1642911158562,0.00341054,2433.3,2433.0,1.125751]
[1642911158962,0.00284212,2433.2,2433.0,1.125751]
[1642911159160,0.00284212,2433.2,2432.4,6.23844889]
[1642911159363,0.4741649,2433.5,2432.4,3.79840527]
[1642911159566,0.495,2434.0,2432.6,2.9]
[1642911159768,0.495,2434.0,2432.5,2.85608044]
[1642911159769,0.00113685,2433.3,2432.7,2.44004362]
[1642911160063,0.00113685,2433.3,2432.8,1.34760575]
[1642911160263,0.00113685,2433.3,2432.8,1.34931102]
[1642911160462,0.00113685,2433.3,2432.9,0.00113684]
[1642911160666,0.00113685,2433.3,2433.0,1.09690974]
[1642911162321,3.685e-05,2433.3,2433.2,0.20578]
[1642911162718,3.685e-05,2433.3,2433.2,0.70078]
[1642911162918,3.685e-05,2433.3,2433.2,2.93504362]
[1642911163120,3.685e-05,2433.3,2433.2,3.23504362]
[1642911163317,0.04,2434.8,2434.4,1.43592103]
[1642911163519,0.04,2434.8,2434.5,3.62696916]
[1642911163718,1.34407418,2435.3,2435.0,1.30293595]
[1642911163719,1.25446148,2435.3,2435.0,1.30293595]
[1642911163922,0.5157124,2435.5,2434.5,2.32122238]
[1642911164121,0.00227369,2435.1,2434.5,2.32122238]
[1642911164319,0.00227369,2435.1,2434.4,2.29232103]
[1642911164553,0.00170527,2435.0,2434.4,2.49810103]
[1642911164753,0.00170527,2435.0,2434.8,1.21764319]
[1642911164955,0.00113685,2434.9,2434.8,1.41632624]
[1642911165159,0.00113685,2434.9,2434.8,3.52210624]
[1642911165160,3.685e-05,2434.9,2434.8,3.52210624]
[1642911165356,0.00113685,2434.9,2434.8,2.10578]
[1642911165754,3.685e-05,2434.9,2434.8,2.10578]
[1642911166154,3.685e-05,2434.9,2434.8,2.40741158]
[1642911166358,4.925e-05,2435.5,2434.9,2.9]
[1642911166560,0.01212769,2436.8,2435.1,0.0128529]
[1642911166756,0.01212769,2436.8,2435.2,0.20578]
[1642911166757,0.00174211,2435.4,2435.2,0.20578]
[1642911166960,0.01212769,2436.8,2435.3,2.9]
[1642911167158,1.39650287,2436.5,2435.2,0.20578]
[1642911167361,1.39650287,2436.5,2435.2,1.26143962]
[1642911167362,1.12704665,2435.5,2435.2,1.26143962]
[1642911167562,1.12704665,2435.5,2434.8,0.00166843]
[1642911167959,1.12704665,2435.5,2434.6,0.00454738]
[1642911168158,1.12704665,2435.5,2434.3,0.13819997]
[1642911168159,1.82775665,2435.5,2434.4,0.00568423]
[1642911168410,0.46322822,2435.0,2434.4,0.00568423]
[1642911168811,1.12704665,2434.5,2434.4,0.00568423]
[1642911169009,0.495,2434.9,2434.1,0.0073895]
[1642911170212,1.41677871,2435.1,2434.9,0.98999999]
[1642911170411,0.495,2435.1,2434.9,0.98999999]
[1642911170611,0.495,2435.1,2435.0,0.00227369]
[1642911170814,1.74206094,2435.1,2435.0,0.00227369]
[1642911171017,1.89777094,2435.1,2435.0,0.00227369]
[1642911171412,3.11523763,2435.1,2435.0,0.00227369]
[1642911171612,3.01523763,2435.1,2435.0,0.00227369]
[1642911172065,3.92835,2435.0,2433.5,0.13819997]
[1642911172270,3.92835,2435.0,2432.9,0.20578]
[1642911172271,1.02853,2434.7,2432.9,0.20578]
[1642911172472,4.25781047,2434.6,2433.6,0.00795793]
[1642911172671,0.495,2434.6,2433.6,0.00795793]
[1642911173071,0.34321393,2433.8,2433.6,0.00795793]
[1642911173473,1.1327,2435.0,2433.6,0.00795793]
[1642911173672,0.72,2435.1,2433.7,0.20578]
[1642911174073,0.72,2435.1,2434.1,0.01230571]
[1642911174481,1.51427356,2434.9,2434.6,1.42158441]
[1642911174875,0.225,2435.1,2434.7,0.00170527]
[1642911175907,0.225,2435.1,2435.0,1.11483695]
[1642911176107,0.225,2435.1,2434.7,0.00170527]
[1642911176507,0.225,2435.1,2433.9,2.21281976]
[1642911176508,0.225,2435.1,2434.6,0.00227369]
[1642911176708,0.225,2435.1,2434.2,0.00454739]
[1642911176909,0.225,2435.1,2434.0,0.00568423]
[1642911177113,0.225,2435.1,2434.3,0.20578]
[1642911177311,0.225,2435.1,2434.7,1.31553225]
[1642911177608,0.225,2435.1,2434.6,1.413201]
[1642911177809,0.225,2435.1,2434.8,0.00113685]
[1642911178011,0.225,2435.1,2434.7,0.00170527]
[1642911178510,2.04848942,2435.4,2435.1,0.45]
[1642911178511,1.55348942,2435.4,2435.1,0.45]
[1642911178908,0.00170527,2435.3,2435.1,0.45]
[1642911179310,0.00113685,2435.2,2435.1,0.45]
[1642911180267,0.13819996,2435.6,2435.1,0.45]
[1642911180268,0.495,2436.0,2435.2,2.9033737]
[1642911180461,7.05519,2437.1,2435.3,0.21830466]
[1642911180462,0.00258365,2436.5,2435.3,0.21830466]
[1642911180663,0.00258365,2436.5,2435.2,0.0033737]
[1642911180664,0.00170527,2435.5,2435.2,0.0033737]
[1642911180862,0.00170527,2435.5,2435.3,2.61338964]
[1642911181063,1.51199447,2436.0,2435.3,4.21338964]
[1642911181064,0.00113684,2435.4,2435.3,4.21338964]
[1642911181265,0.00113684,2435.4,2435.3,1.80578]
[1642911181266,3.684e-05,2435.4,2435.3,1.80578]
[1642911181465,0.00113684,2435.4,2435.3,1.80578]
[1642911181674,3.684e-05,2435.4,2435.3,1.80578]
[1642911181963,3.684e-05,2435.4,2435.3,1.80741158]
[1642911182163,3.684e-05,2435.4,2435.3,3.10741158]
[1642911182770,0.15064436,2436.8,2435.4,2.90076316]
[1642911182771,2.35467202,2436.8,2435.4,2.90076316]
[1642911182967,0.15064436,2436.8,2435.5,0.20578]
[1642911183167,0.00515266,2436.5,2435.4,0.00076316]
[1642911183417,0.70071,2436.4,2435.4,0.00076316]
[1642911183717,0.00401582,2436.3,2435.4,0.00076316]
[1642911183916,0.495,2436.2,2435.4,0.00076316]
[1642911184116,0.5852992,2436.2,2435.4,0.00076316]
[1642911184316,0.00287897,2436.1,2435.4,0.00076316]
[1642911184517,0.495,2436.0,2435.4,0.00076316]
[1642911184719,0.49731055,2436.0,2435.4,0.00076316]
[1642911185030,2.77724259,2435.9,2435.4,0.00076316]
[1642911185219,0.01237355,2435.6,2435.3,0.00166842]
[1642911185417,0.20571,2435.4,2433.7,0.20578]
[1642911185621,4.4809,2435.3,2433.7,0.34397997]
[1642911185818,0.495,2435.2,2433.8,0.00852635]
[1642911186019,0.495,2435.2,2434.3,1.1554785]
[1642911186420,0.00113685,2435.5,2434.4,0.00511581]
[1642911186620,0.00113685,2435.5,2434.5,0.20578]
[1642911187064,0.00113685,2435.5,2435.3,1.33912717]
[1642911189066,0.00913685,2435.5,2435.2,1.17455299]
[1642911190066,0.00913685,2435.5,2435.4,1.37611795]
[1642911190268,0.50753674,2436.3,2434.6,1.19787896]
[1642911190269,1.40911313,2435.7,2434.6,1.40365896]
[1642911190468,1.40911313,2435.7,2434.6,0.20975896]
[1642911190666,1.40911313,2435.7,2434.7,0.00454739]
[1642911191307,1.40911313,2435.7,2435.0,1.49354391]
[1642911191506,1.40911313,2435.7,2434.7,0.00454739]
[1642911191706,1.90411313,2435.7,2435.1,0.0022737]
[1642911191906,1.90411313,2435.7,2434.7,0.00454739]
[1642911192309,1.90411313,2435.7,2434.6,1.56705243]
[1642911192310,0.16288805,2434.9,2434.6,1.56705243]
[1642911192507,0.16288805,2434.9,2434.5,0.00568424]
[1642911192712,1.64617518,2435.7,2434.9,0.3257761]
[1642911192713,0.495,2435.3,2434.9,0.3257761]
[1642911192916,2.55,2435.1,2434.5,0.00568424]
[1642911193109,3.50148369,2435.0,2433.7,0.34397997]
[1642911193315,0.01239282,2434.6,2433.3,0.0008]
[1642911193510,0.01239282,2434.6,2433.4,1.46961847]
[1642911193511,0.22460876,2433.5,2433.4,1.46961847]
[1642911193710,0.21810282,2434.6,2434.2,0.67382627]
[1642911193711,3.17939671,2434.4,2434.2,0.67382627]
[1642911193909,0.20571,2434.4,2434.2,0.67382627]
[1642911194209,1.6,2434.2,2433.5,0.57200526]
[1642911194408,0.495,2434.1,2433.5,0.57200526]
[1642911194655,0.495,2434.1,2433.6,0.00397897]
[1642911195053,0.70071,2434.1,2433.6,0.00397897]
[1642911195252,1.11419986,2434.0,2433.6,0.00397897]
[1642911195457,0.495,2433.9,2433.6,0.00397897]
[1642911199310,2.10571,2433.7,2433.6,0.00397897]
[1642911199506,2.60071,2433.7,2433.6,0.00397897]
[1642911199710,2.60071,2433.7,2433.5,0.57200526]
[1642911200104,0.70071,2433.7,2433.5,0.57200526]
[1642911200510,0.29491327,2433.6,2433.5,0.57200526]
[1642911200705,0.78991327,2433.6,2433.5,0.57200526]
[1642911200906,0.99562327,2433.6,2433.5,0.57200526]
[1642911201507,0.78991327,2433.6,2433.5,0.57200526]
[1642911201811,0.495,2433.6,2433.5,0.57200526]
[1642911202064,1.02854,2434.7,2433.5,0.57200526]
[1642911202065,0.495,2434.1,2433.5,0.57200526]
[1642911202266,0.495,2434.1,2433.6,3.49720503]
[1642911202464,0.0022737,2434.0,2433.6,3.49720503]
[1642911202665,1.2778381,2433.7,2433.5,0.57200526]
[1642911202864,0.00170527,2433.9,2433.5,0.57200526]
[1642911203076,0.495,2433.8,2433.5,0.57200526]
[1642911203267,0.49613685,2433.8,2433.5,0.57200526]
[1642911203668,0.20571,2433.6,2433.5,0.57200526]
[1642911203867,0.495,2433.6,2433.5,0.57200526]
[1642911204069,1.7899756,2433.6,2433.5,0.57200526]
[1642911204267,1.9956856,2433.6,2433.5,0.57200526]
[1642911204868,1.7899756,2433.6,2433.5,0.57200526]
[1642911206102,1.7899756,2433.6,2433.3,0.0008]
[1642911206103,2.5,2433.5,2433.3,0.0008]
[1642911206305,0.20571,2433.4,2433.3,0.0008]
[1642911206502,0.70071,2433.4,2433.3,0.0008]
[1642911207102,0.495,2433.4,2433.3,0.0008]
[1642911207302,0.495,2433.4,2432.4,3.49793898]
[1642911207303,1.65,2433.3,2432.4,3.49793898]
[1642911207503,0.495,2433.2,2432.5,3.49793898]
[1642911207702,0.495,2433.1,2432.6,3.49793898]
[1642911207907,0.495,2433.0,2432.5,0.00625266]
[1642911208102,0.495,2433.0,2432.7,1.44478903]
[1642911208103,0.60913753,2433.0,2432.7,1.44478903]
[1642911208306,0.60913753,2433.0,2432.7,1.43967322]
[1642911208507,0.495,2433.0,2432.8,0.00454739]
[1642911208909,0.00113685,2433.8,2432.8,0.00454739]
[1642911209111,0.495,2433.6,2432.8,3.50197755]
[1642911209308,0.00113685,2433.8,2432.8,3.50197755]
[1642911209309,0.00113685,2433.8,2432.9,3.70321016]
[1642911209556,1.35659305,2433.8,2433.5,1.47641182]
[1642911209753,0.00113685,2433.8,2433.5,1.47641182]
[1642911210362,0.495,2434.5,2434.0,0.0022737]
[1642911210758,0.00170527,2434.1,2434.0,3.21936801]
[1642911211360,0.00170527,2434.1,2434.0,1.16936801]
[1642911211565,0.00170527,2434.1,2434.0,0.0022737]
[1642911213813,0.00170527,2434.1,2434.0,1.6022737]
[1642911216920,0.00170527,2434.1,2434.0,0.0022737]
[1642911217967,5.27e-06,2434.1,2434.0,0.0022737]
[1642911218164,5.27e-06,2434.1,2434.0,0.2080537]
[1642911218364,5.27e-06,2434.1,2434.0,0.22021288]
[1642911219569,5.27e-06,2434.1,2434.0,0.0022737]
[1642911220825,0.49500527,2434.1,2434.0,0.0022737]
[1642911224661,2.9,2434.0,2433.6,0.00113685]
[1642911224861,0.495,2433.9,2433.6,0.00113685]
[1642911225061,0.58185181,2433.9,2432.8,0.00738424]
[1642911225465,0.18622949,2433.1,2432.8,1.22441128]
[1642911225666,0.495,2433.0,2432.8,1.22441128]
[1642911225967,0.495,2433.0,2432.9,1.55681581]
[1642911226967,0.495,2433.0,2432.9,2.9124173]
[1642911227167,0.495,2433.0,2432.9,1.55681581]
[1642911227369,0.495,2433.0,2432.9,0.00681581]
[1642911227768,0.495,2433.0,2432.8,0.00738424]